Cogmind - Beta 15 @@@ ROGUE MODE // 2025.08.15 @ 00:45:34 Player: Cracklepappy Result: Core destroyed Performance ------------- Evolutions (6) 3000 Regions Visited (27) 5400 Robots Destroyed (566) 2830 Value Destroyed (23178) 23178 Prototype IDs (89) 1780 Alien Tech Used (4) 800 Bonus (12232) 12232 TOTAL SCORE: 49220 Bonus ------- High Alert Combat Kills 4755 Follower Combat Kills 166 Entered Garrisons 800 Entered DSFs 500 Aligned with FarCom 300 Acquired ECA 300 Met Warlord at Base 500 MAIN.C Attacked Warlord 500 Warlord Defense Kills 5070 Friendly Fire -659 Cogmind --------- Core Integrity 0/1150 Matter 182/300 Energy 84/100 System Corruption 81% Temperature Cool (0) Movement Core (2350) Ox46 Location -4/Warlord Parts ------- > --- POWER (2) -------- (None) > --- PROPULSION (5) --- (None) > --- UTILITY (7) ------ Experimental Heat Sink Cargo Storage Unit Experimental Core Analyzer Graphene Brace > --- WEAPON (6) ------- (None) > --- INVENTORY (30) --- Reinforced Fission Core Light Antimatter Reactor Reinforced Antimatter Reactor Light Quantum Reactor Compact Wheel Cryofiber Web Experimental Heat Sink Experimental Coolant Injector Experimental Energy Well (600) Matter Compressor (250) Improved Matter Compressor (300) Machine Analyzer Experimental Sensor Array Improved Armor Integrity Analyzer Precision Matter Filter Precision Matter Filter Ghost Barrier Long-range Tractor Beam Improved Plasma Cutter Enhanced Force Lance Peak State ------------ > --- POWER ------------ Reinforced Fission Core Light Quantum Reactor > --- PROPULSION ------- Armored Huge Wheel Centrium Wheel Centrium Wheel Centrium Wheel > --- UTILITY ---------- Advanced Cooling System Cargo Storage Unit IFF Parser Long-range Terrain Scanner Experimental Core Analyzer System Guard > --- WEAPON ----------- Vortex Rail KE Penetrator KE Penetrator KE Penetrator Railgun Enhanced Gauss Cannon > --- INVENTORY -------- Wheel Wheel Cryofiber Web Experimental Heat Sink Experimental Heat Sink Advanced Cooling System Experimental Energy Well Matter Compressor Improved Matter Compressor Machine Analyzer Experimental Sensor Array Encrypted Comm Array Makeshift Salvage Targeting Computer Precision Matter Filter Precision Matter Filter Graphene Brace Advanced Hardlight Generator Advanced Shield Generator Makeshift Hacking Suite Long-range Tractor Beam Dimensional Node Initializer Transdimensional Reconstructor Matter Neutralizer Coil Gun Coil Gun Hardcell Cannon Mini Smartbomb Launcher Improved Plasma Cutter RU-N14's Throwing Claymores v3 Enhanced Force Lance [Rating: 138] Favorites ----------- Power Reinforced Fission Core Engine Heavy Ion Engine Power Core Reinforced Fission Core Reactor Cold Fusion Reactor Propulsion Wheel Wheel Wheel Utility Huge Storage Unit Device IFF Parser Storage Huge Storage Unit Processor Experimental Core Analyzer Hackware Makeshift System Shield Protection Light Armor Plating Weapon KE Penetrator Energy Gun Plasma Rifle Energy Cannon Particle Cannon Ballistic Gun KE Penetrator Ballistic Cannon Light Cannon Launcher Rocket Launcher Special Weapon Plasma Cutter Impact Weapon Mace Slashing Weapon Great Axe Piercing Weapon Enhanced Force Lance Special Melee Weapon Datajack Build | -11 -10 -10 -9 -9 -9 -8 -8 -8 -8 -8 -8 -7 -7 -6 -6 -6 -5 -5 -5 -5 -5 -5 -4 -4 -4 -4 -4 ------- Run | Yrd Mat Min Mat Min Exi Min Mat Gar Mat Gar Mat Fac Gar Fac DSF Gar Fac Was Fac Upp Upp Zhi Pro Fac Upp Upp War Slots Evolved 12 | . . . 2 . . . 2 . . . . 2 . 2 . . 2 . . . . . . 2 . . . Power 1 | . . . . . . . . . . . . . . . . . . . . . . . . 1 . . . Propulsion 3 | . . . . . . . . . . . . 2 . . . . 1 . . . . . . . . . . Utility 5 | . . . . . . . 1 . . . . . . 2 . . 1 . . . . . . 1 . . . Weapon 3 | . . . 2 . . . 1 . . . . . . . . . . . . . . . . . . . . Parts Attached 317 | 7 20 . 16 2 14 5 35 10 14 15 7 6 18 8 11 20 11 8 30 1 1 5 5 10 4 4 30 Power 23 | 1 4 . 3 . . . 1 . 1 2 1 . 2 . 1 1 . . 1 1 . . . 1 . 1 2 Engine 14 | 1 4 . 2 . . . 1 . 1 2 . . 2 . . 1 . . . . . . . . . . . Core 6 | . . . 1 . . . . . . . . . . . 1 . . . 1 1 . . . 1 . . 1 Reactor 3 | . . . . . . . . . . . 1 . . . . . . . . . . . . . . 1 1 Propulsion 62 | 2 5 . 3 1 2 2 4 3 2 2 . 4 4 . 1 2 5 . 6 . 1 . 1 4 1 2 5 Treads . | . . . . . . . . . . . . . . . . . . . . . . . . . . . . Leg . | . . . . . . . . . . . . . . . . . . . . . . . . . . . . Wheel 62 | 2 5 . 3 1 2 2 4 3 2 2 . 4 4 . 1 2 5 . 6 . 1 . 1 4 1 2 5 Hover . | . . . . . . . . . . . . . . . . . . . . . . . . . . . . Flight . | . . . . . . . . . . . . . . . . . . . . . . . . . . . . Utility 88 | 2 3 . 5 . 1 . 9 3 4 1 3 1 4 3 2 5 4 5 12 . . 3 1 4 2 1 10 Device 56 | 1 . . 4 . . . 7 2 3 1 2 1 2 2 1 4 3 4 8 . . . . 3 . 1 7 Storage 10 | 1 2 . . . . . . . . . 1 . . . 1 1 . 1 1 . . 2 . . . . . Processor 15 | . . . 1 . 1 . 1 1 1 . . . 1 1 . . 1 . 2 . . . 1 1 . . 3 Hackware 2 | . . . . . . . 1 . . . . . . . . . . . 1 . . . . . . . . Protection 5 | . 1 . . . . . . . . . . . 1 . . . . . . . . 1 . . 2 . . Artifact . | . . . . . . . . . . . . . . . . . . . . . . . . . . . . Weapon 144 | 2 8 . 5 1 11 3 21 4 7 10 3 1 8 5 7 12 2 3 11 . . 2 3 1 1 . 13 Energy Gun 26 | 1 . . 1 . . . 2 . . . 2 . 6 . 6 . 1 . . . . . . . . . 7 Energy Cannon 7 | . . . 1 . 1 1 . . . . . . . . . 1 1 . . . . . 1 . . . 1 Ballistic Gun 74 | 1 3 . 2 . 6 2 17 2 4 9 1 . 1 . 1 8 . 3 7 . . 1 2 1 . . 3 Ballistic Cannon 18 | . 3 . . . . . 2 . 2 . . 1 1 5 . 2 . . . . . . . . 1 . 1 Launcher 7 | . . . 1 1 1 . . . . 1 . . . . . . . . 3 . . . . . . . . Special Weapon 7 | . 2 . . . 1 . . 1 1 . . . . . . . . . . . . 1 . . . . 1 Impact Weapon 1 | . . . . . 1 . . . . . . . . . . . . . . . . . . . . . . Slashing Weapon 1 | . . . . . . . . 1 . . . . . . . . . . . . . . . . . . . Piercing Weapon 1 | . . . . . . . . . . . . . . . . . . . 1 . . . . . . . . Special Melee Weapon 2 | . . . . . 1 . . . . . . . . . . 1 . . . . . . . . . . . Unidentified Prototypes 29 | . . . 2 . . . 2 . 1 . 2 . . . . . . 3 5 . . 4 1 . . 1 8 Corrupted Parts 9 | . . . . . . . . . . . . . . . . . . . . . . . . . . . 9 System Corruption 70 | . . . . . . . . . . . . . . . . . . . . . . . . . . . 70 Parts Lost 83 | . 1 . 2 . 8 1 2 1 2 9 . . 6 . . 5 . . 1 . . . 1 2 . 2 40 Power 6 | . 1 . . . . . . . . . . . . . . . . . . . . . . . . 1 4 Propulsion 26 | . . . 1 . 2 . 2 1 1 2 . . 3 . . 3 . . . . . . 1 . . 1 9 Utility 13 | . . . . . . . . . . 2 . . . . . 2 . . 1 . . . . 1 . . 7 Weapon 38 | . . . 1 . 6 1 . . 1 5 . . 3 . . . . . . . . . . 1 . . 20 Highest Loss Streak 16 | . 1 . 1 . 6 1 1 1 1 3 . . 2 . . 2 . . 1 . . . 1 1 . 2 16 To Critical Strikes 5 | . . . . . 4 . . . . 1 . . . . . . . . . . . . . . . . . Average Backups 25 | 3 20 25 24 25 19 24 24 24 24 23 24 24 24 24 24 24 27 26 27 29 29 29 29 29 30 29 28 Power 1 | . . 1 1 1 1 1 1 1 1 1 . 1 1 1 1 1 1 1 1 1 1 1 1 . . . . Propulsion 1 | 2 3 2 2 3 2 1 1 1 2 1 1 . . 1 . . . 1 2 3 2 2 1 1 3 2 1 Utility 12 | . 6 11 12 10 9 16 15 12 11 10 12 12 13 12 11 10 11 11 11 13 14 15 18 19 17 17 16 Weapon 8 | 1 8 10 7 9 5 3 4 7 8 8 8 8 7 8 9 11 12 12 11 9 9 7 5 5 5 5 5 Tool/Special . | . . . . . . . . . . . . . . . . . . . . . . . . . . . . Unused Backups 110 | 2 3 6 16 . 12 4 8 4 2 . 6 . 12 . 5 . 1 . 6 2 . . . 4 1 1 15 Power 13 | . . . 3 . 4 . . . . . . . 1 . 1 . . . . . . . . . . . 4 Propulsion 11 | 2 3 . . . . . . 1 2 . . . . . . . 1 . . . . . . 2 . . . Utility 54 | . . 4 10 . 8 3 3 1 . . 1 . 3 . 2 . . . 4 2 . . . 2 1 1 9 Weapon 31 | . . 2 3 . . 1 5 2 . . 5 . 8 . 2 . . . 2 . . . . . . . 1 Tool/Special 1 | . . . . . . . . . . . . . . . . . . . . . . . . . . . 1 Average Slot Usage (%) 93 | . 97 100 99 100 97 99 99 99 99 99 98 99 93 95 99 88 84 93 84 82 82 54 82 84 90 89 86 Engine 4 | . 12 14 10 11 11 11 9 9 9 9 1 . 2 6 5 . . . . . . . . . . . . Core 2 | . . . . . . . . . . . . . . . . 6 5 5 5 5 5 5 5 7 10 7 4 Wheel 21 | . 27 28 21 22 21 22 17 17 17 17 18 29 24 26 25 16 26 29 19 17 17 17 16 16 20 19 20 Device 13 | . 7 . 10 11 7 9 15 11 4 9 18 15 9 17 20 19 13 16 17 17 17 16 16 18 15 15 13 Storage 7 | . 14 14 11 11 11 11 9 9 9 9 9 7 7 6 6 6 5 5 5 5 5 5 5 5 5 5 5 Processor 4 | . . . . . 3 1 2 5 13 8 . . 4 4 6 6 7 5 5 5 5 5 5 6 10 10 9 Energy Gun 1 | . . . . . . . 1 . . . . . 11 22 12 6 . . . . . . . . . . 2 Energy Cannon 1 | . . . 10 10 . 16 1 . . . . . . . . . . . . . . . . 2 . . . Ballistic Gun 26 | . 12 . 29 33 33 26 36 42 35 37 43 34 18 . . 23 13 27 28 29 29 1 31 27 26 25 21 Ballistic Cannon 3 | . 12 27 3 . . . 5 . 8 3 . 3 4 11 20 1 4 . . . . . . . 3 5 3 Peak Build Rating 138 | 7 9 11 20 20 32 27 41 43 48 49 55 53 55 80 84 79 84 87 103 101 100 100 108 126 126 128 138 Average Rating 62 | 5 8 9 18 20 20 24 32 41 42 43 52 52 48 68 77 73 80 82 96 100 99 71 105 117 124 124 127 On Entrance 61 | . 7 9 11 20 20 23 25 41 43 40 47 49 53 55 80 76 78 78 83 101 100 99 100 107 124 126 123 Naked Turns . | . . . . . . . . . . . . . . . . . . . . . . . . . . . . Heaviest Build 263 | 12 92 92 104 102 105 108 114 109 113 112 110 114 116 144 144 263 202 193 197 190 190 189 194 220 222 224 224 Greatest Support 76 | 20 20 20 20 20 24 20 20 24 24 24 24 44 52 48 48 48 58 56 72 66 66 66 72 76 76 76 76 Greatest Overweight (x) 64 | . 8 4 5 5 8 5 11 10 8 8 4 2 4 2 3 11 4 64 3 2 2 2 2 3 3 5 8 Average Overweight (x) 3 | . 2 4 4 5 4 4 5 4 4 4 4 2 2 2 2 4 3 14 2 2 2 2 2 2 2 2 2 Largest Inventory Capacity 30 | 8 25 25 25 25 25 25 25 25 25 25 25 25 25 25 25 30 30 30 30 30 30 30 30 30 30 30 30 Average Capacity 26 | 7 21 25 25 25 25 25 25 25 25 25 25 25 25 25 25 25 30 30 30 30 30 30 30 30 30 30 30 Most Carried 30 | 8 25 25 25 25 25 25 25 25 25 25 25 25 25 25 25 30 30 30 30 30 30 30 30 30 30 30 30 Average Carried 26 | 3 20 24 24 25 19 24 24 24 24 23 24 24 24 23 24 25 29 29 29 29 29 29 29 29 29 29 28 Final Capacity 30 | 8 25 25 25 25 25 25 25 25 25 25 25 25 25 25 25 30 30 30 30 30 30 30 30 30 30 30 30 Final Carried 30 | 8 25 25 25 25 25 25 25 25 25 24 25 25 25 23 25 30 29 30 30 30 29 30 30 30 30 30 20 Class Distribution -------------------- 40% | Scavenger-Gunner 15% | Gunner 13% | Hauler-Executioner 11% | Hauler-Gunner 6% | Mutant Dominant Class ---------------- Mutant | -10/Materials Mutant | -10/Mines Scavenger-Gunner | -9/Materials Scavenger-Gunner | -9/Mines Scavenger-Gunner | -9/Exiles Gunner | -8/Mines Tank | -8/Materials Gunner | -8/Garrison Scavenger-Gunner | -8/Materials Skirmisher | -8/Garrison Gunner | -8/Materials Scavenger-Gunner | -7/Factory Gunner | -7/Garrison Gunner | -6/Factory Scavenger-Gunner | -6/DSF Scavenger-Gunner | -6/Garrison Scavenger-Gunner | -5/Factory Scavenger-Gunner | -5/Waste Hauler-Gunner | -5/Factory Hauler-Gunner | -5/Upper Caves Hauler-Gunner | -5/Upper Caves Hauler-Mutant | -5/Zhirov Hauler-Executioner | -4/Proximity Caves Hauler-Executioner | -4/Factory Hauler-Executioner | -4/Upper Caves Hauler-Executioner | -4/Upper Caves Hauler-Executioner | -4/Warlord Resources | -11 -10 -10 -9 -9 -9 -8 -8 -8 -8 -8 -8 -7 -7 -6 -6 -6 -5 -5 -5 -5 -5 -5 -4 -4 -4 -4 -4 ----------- Run | Yrd Mat Min Mat Min Exi Min Mat Gar Mat Gar Mat Fac Gar Fac DSF Gar Fac Was Fac Upp Upp Zhi Pro Fac Upp Upp War Matter Collected 25568 | 327 748 492 1078 228 685 433 1739 881 1209 1984 1602 60 1812 . 840 2455 352 475 2595 99 220 512 501 1329 342 656 1914 Remotely 2335 | . . . . . . . . . 30 . 480 . 192 . 470 451 . . 529 . . . . 183 . . . Salvage Created 26760 | 247 750 83 2112 220 370 637 1992 1205 1262 1518 1425 78 2139 . 314 2815 224 794 3696 60 316 262 342 1624 320 621 1334 Parts 1377 | 22 45 5 136 23 45 39 119 68 88 80 64 2 81 . 14 103 16 10 215 2 12 4 25 80 15 25 39 Haulers Intercepted 24 | . 2 . 6 . . . 5 . 1 . 3 . . . . . . . 4 . . . . 2 . 1 . Recyclers Shooed 8 | . 1 . 3 1 . . . . 1 . . . . . . . . . 1 . . . . 1 . . . Parts Field Recycled . | . . . . . . . . . . . . . . . . . . . . . . . . . . . . Retrieved Matter . | . . . . . . . . . . . . . . . . . . . . . . . . . . . . Parts Self-Destructed 79 | . . . . . . . . . . . . . . . . . . . . 3 10 4 22 . 15 25 . Prevented 6 | . . . . . . . . . . . . . . . . . . . . 5 . . . . 1 . . Kills | -11 -10 -10 -9 -9 -9 -8 -8 -8 -8 -8 -8 -7 -7 -6 -6 -6 -5 -5 -5 -5 -5 -5 -4 -4 -4 -4 -4 ------- Run | Yrd Mat Min Mat Min Exi Min Mat Gar Mat Gar Mat Fac Gar Fac DSF Gar Fac Was Fac Upp Upp Zhi Pro Fac Upp Upp War Combat Hostiles Destroyed 419 | . 13 2 38 12 7 10 33 23 23 41 18 . 33 . 11 38 . . 38 1 8 . 9 14 4 7 36 Guns 293 | . 8 . 16 3 3 7 25 23 18 32 18 . 18 . . 34 . . 34 1 4 . 9 14 4 5 17 Cannons 70 | . 5 2 18 2 . 3 8 . 5 4 . . 5 . 8 2 . . . . . . . . . 2 6 AOE 51 | . . . 4 7 4 . . . . 5 . . 8 . 3 . . . 4 . 4 . . . . . 12 Classes Destroyed 28 | 3 5 1 2 1 2 1 1 1 . 1 . . 1 . 1 . . . . . . . 2 . 1 . 5 Worker 34 | 2 1 . 4 2 . 5 3 . 2 . 3 . . . . . 2 . 7 . . . . 3 . . . Builder 28 | . 1 . 1 1 . 2 1 . 6 . 2 . . . . . 2 . 9 . . . . 3 . . . Tunneler 10 | 5 . . 1 . . 2 . . . . 1 . . . . . 1 . . . . . . . . . . Hauler 24 | . 2 . 6 . . . 5 . 1 . 3 . . . . . . . 4 . . . . 2 . 1 . Recycler 21 | 1 3 . 3 . . 3 2 . . . 2 1 . . . . 1 . 2 . . . . 3 . . . Minesweeper 2 | . . . . . . . . . . . . . . . . . . . . . . . . . 1 1 . Mechanic 4 | . . . 1 . . . . . . . . . . . . 2 . . 1 . . . . . . . . Operator 3 | . . . 1 . . . . . 1 . . . . . . . . . 1 . . . . . . . . Drone 2 | . . . . . . . . . . . . . . . . . . . . . . . 2 . . . . Watcher 14 | . 1 . 4 . . . 4 . 1 . 1 . . . . . . . 3 . . . . . . . . Swarmer 108 | . 6 . 9 10 . 9 4 6 4 13 . . 12 . 7 11 . . 7 . 4 . 5 . . . 1 Saboteur 3 | . . . . . . . . . . . . . . . . . . . . . . . . . . . 3 Grunt 152 | . 7 1 19 1 . . 16 5 10 16 13 . 7 . . 18 . . 11 . 3 . . 7 2 5 11 Brawler 13 | . . . . 1 . . . . 2 . 1 . 1 . . 2 . . 1 . 1 . . . . . 4 Duelist 5 | . . . . . . . 2 . 2 . . . . . . . . . . . . . . . . . 1 Protector 2 | . . . . . . . . . . . . . . . . . . . . . . . . . . . 2 Researcher 1 | . . . . . . . . . . . . . . . . . . . . . . . 1 . . . . Sentry 57 | . . 1 10 . . . 11 5 4 7 3 . 6 . 1 4 . . 5 . . . . . . . . Demolisher 2 | . . . . . . . . . . . . . . . . . . . . . . . . . . . 2 Specialist 7 | . . . . . . . . . . 3 . . 2 . . 1 . . . . . . . . . . 1 Hunter 29 | . . . . . . 1 . 4 1 . 1 . 2 . 2 1 . . 6 . . . 2 2 2 2 3 Programmer 23 | . . . . . . . . 3 . 2 . . 1 . . . . . 8 1 . . . 5 . . 3 Heavy 1 | . . . . . . . . . . . . . . . 1 . . . . . . . . . . . . Behemoth 3 | . . . . . . . . . . . . . 2 . . 1 . . . . . . . . . . . Striker 1 | . . . . . . . . . . . . . . . . . . . . . . . . . . . 1 Executioner 4 | . . . . . . . . . . . . . . . . . . . . . . . . . . . 4 Zionite 7 | . . . . . 7 . . . . . . . . . . . . . . . . . . . . . . Assembled 6 | . . . . . 6 . . . . . . . . . . . . . . . . . . . . . . Thug 2 | . . . . . . . . . . . . . . . . . . . 2 . . . . . . . . Best Kill Streak 12 | 8 6 1 9 4 5 10 7 6 9 10 10 1 10 . 4 5 2 . 9 1 4 . 6 7 2 5 12 Combat Bots Only 12 | . 5 1 5 4 4 7 6 6 6 10 6 . 10 . 4 5 . . 5 1 4 . 6 5 2 5 12 Max Kills in Single Turn 5 | 1 1 1 5 4 2 2 2 2 3 3 3 1 4 . 2 3 1 . 3 1 3 . 4 2 2 2 3 Gunslinging 2 | . . . . . . . . 1 . 1 1 . . . . 1 . . 2 . 1 . 2 . 1 . . Exploded 4 | . . . 4 4 2 . . . . 3 . . 4 . 2 . . . 2 . 3 . . . . . 3 Melee . | . . . . . . . . . . . . . . . . . . . . . . . . . . . . Uniques/NPCs Destroyed 4 | . . . . . 4 . . . . . . . . . . . . . . . . . . . . . . 8R-AWN (-9/Exiles) EX-DEC (-9/Exiles) EX-BIN (-9/Exiles) EX-HEX (-9/Exiles) Combat | -11 -10 -10 -9 -9 -9 -8 -8 -8 -8 -8 -8 -7 -7 -6 -6 -6 -5 -5 -5 -5 -5 -5 -4 -4 -4 -4 -4 -------- Run | Yrd Mat Min Mat Min Exi Min Mat Gar Mat Gar Mat Fac Gar Fac DSF Gar Fac Was Fac Upp Upp Zhi Pro Fac Upp Upp War Hostile Shots Fired 1777 | . 55 . 111 19 56 29 104 77 53 179 25 . 200 . 76 130 . . 136 19 20 . 38 66 42 84 258 Missed 540 | . 12 . 40 7 7 6 25 19 16 41 9 . 76 . 29 45 . . 46 7 10 . 18 20 11 23 73 Hits 1237 | . 43 . 71 12 49 23 79 58 37 138 16 . 124 . 47 85 . . 90 12 10 . 20 46 31 61 185 Melee 22 | . . . . 1 . . 3 . . . . . . . . . . . . . . . . . . . 18 Projectile 1215 | . 43 . 71 11 49 23 76 58 37 138 16 . 124 . 47 85 . . 90 12 10 . 20 46 31 61 167 AOE 10 | . . . . . . . . . . . . . . . . . . . . . . . . . . . 10 Critical Strikes 77 | . . . 2 . 22 . 2 2 . 5 2 . 3 . 2 3 . . 6 . 1 . . 3 1 3 20 Actively Blocked 20 | . . . . . . . . . . . . . . . . . . . . . . . . . . . 20 Damage Taken 19392 | . 472 . 784 111 1016 181 986 731 535 1672 251 . 1568 . 839 1477 . . 1458 180 120 . 230 795 319 635 5032 Core 2655 | . 54 . 95 22 83 50 80 78 24 275 48 . 209 . 116 136 . . 106 20 10 . 16 42 42 71 1078 Absorbed by Shields 1608 | . . . . . . . 128 . . . . . . . . . . . 138 . 48 . 84 126 248 440 396 Ignored by Resistances 84 | . . . . . . . . . . . . . . . 14 . . . 70 . . . . . . . . Regen/Repaired (Parts) 713 | . . . 98 . . . . . . . 302 . . . . . . . 126 . . . . . . . 187 Core Remaining (%) 63 | 100 . 78 . . . 37 . . . . 8 . 70 . . 70 . . . . . . 84 . . . . Volleys Fired 1230 | 19 78 14 87 18 61 45 80 94 44 82 54 3 116 . 14 130 12 9 78 4 7 13 14 40 9 23 82 Largest 6 | 2 2 2 4 4 4 4 5 5 5 5 5 5 5 . 5 5 1 5 5 5 5 1 6 6 6 6 6 Hottest 417 | 60 100 100 148 134 92 176 197 135 160 155 125 125 400 . 235 375 65 168 173 165 165 20 198 198 197 211 417 Shots Fired 4277 | 38 137 18 345 63 178 137 380 209 199 316 271 11 316 . 62 382 12 41 377 22 28 13 78 165 54 134 291 Gun 3500 | 38 85 . 224 45 169 82 316 163 166 287 271 10 222 . . 335 . 40 375 22 26 . 77 150 54 115 228 Cannon 581 | . 42 8 120 15 . 55 64 . 32 27 . 1 49 . 60 13 12 1 . . . . 1 15 . 19 47 Launcher 34 | . . . 1 3 6 . . . . 2 . . 5 . 2 . . . 2 . 2 . . . . . 11 Special 162 | . 10 10 . . 3 . . 46 1 . . . 40 . . 34 . . . . . 13 . . . . 5 Kinetic 3664 | 19 127 8 258 45 169 82 334 163 198 314 271 11 240 . 60 265 12 40 375 22 26 . 77 150 54 134 210 Thermal 554 | 19 10 10 86 15 . 55 46 46 1 . . . 71 . . 117 . 1 . . . 13 1 15 . . 48 Explosive 39 | . . . 1 3 6 . . . . 2 . . 5 . 2 . . . 2 . 2 . . . . . 16 Electromagnetic . | . . . . . . . . . . . . . . . . . . . . . . . . . . . . Entropic 17 | . . . . . . . . . . . . . . . . . . . . . . . . . . . 17 Robot Hit Streak 26 | 6 9 4 14 4 15 8 24 17 7 10 9 3 26 . 7 20 . 25 14 3 6 15 6 10 4 8 21 Robot Miss Streak 13 | 2 4 2 5 3 5 7 5 3 7 10 7 2 4 . 3 4 . 2 3 2 2 1 13 4 5 5 6 Penetration Max 3 | . . . . . . . 1 1 1 2 . . . . . 1 . . 3 . 1 . . 2 1 1 1 Secondary Targets 47 | . 2 . . . . . 1 4 3 5 4 . 2 . . 5 . . 9 . 2 . 3 4 2 . 1 Max Gunslinging Chain 2 | . 1 . . . . . 1 1 1 1 1 . 1 . . 1 . . 2 . 1 . 2 1 1 . 1 Shots Hit Robots 2267 | 27 72 5 156 22 109 60 228 136 90 162 127 4 211 . 30 216 6 24 195 9 18 12 22 99 24 51 152 Core Hits 1141 | 9 29 3 74 19 39 24 106 61 51 79 51 1 90 . 18 104 3 6 140 2 13 4 16 55 13 25 106 Critical Kills 51 | . . . . . . 1 1 1 3 3 . . 3 . . 2 . 2 29 . . . 1 3 . . 2 Critical Parts Destroyed 59 | . . . . . . . . . 1 3 . . 3 . . 2 . 2 37 . . . 1 6 . 2 2 Critical Strikes 154 | . . . 2 . . 1 3 5 7 6 . . 13 . 2 15 . 5 67 . . . 2 10 . 5 11 Burn 12 | . . . . . . . 1 . . . . . . . . 5 . . . . . . . . . . 6 Destroy 113 | . . . . . . 1 1 1 4 6 . . 6 . . 5 . 5 67 . . . 2 9 . 2 4 Blast 15 | . . . 2 . . . 1 . 3 . . . 2 . 2 1 . . . . . . . . . 3 1 Sever 13 | . . . . . . . . 4 . . . . 5 . . 4 . . . . . . . . . . . Impale 1 | . . . . . . . . . . . . . . . . . . . . . . . . 1 . . . Melee Attacks 173 | . . . . . 6 . . 19 . 61 5 . 38 . . 30 8 . 5 . . . . 1 . . . Impact 1 | . . . . . 1 . . . . . . . . . . . . . . . . . . . . . . Slashing 148 | . . . . . . . . 19 . 52 5 . 38 . . 26 8 . . . . . . . . . . Piercing 6 | . . . . . . . . . . . . . . . . . . . 5 . . . . 1 . . . Sneak Attacks 26 | . . . . . 5 . . . . 9 2 . . . . 3 6 . . . . . . 1 . . . Combat Hostiles . | . . . . . . . . . . . . . . . . . . . . . . . . . . . . Follow-up Attacks . | . . . . . . . . . . . . . . . . . . . . . . . . . . . . Damage Inflicted 55678 | 336 1094 92 3117 746 1624 1037 3752 2649 2218 3206 2406 63 6039 . 1375 5934 484 402 4043 248 865 209 550 2935 501 1268 8485 Guns 36019 | 336 665 . 1428 246 1466 588 2976 1710 1853 2487 2266 63 2461 . . 4035 . 402 3628 248 473 . 550 2857 501 1046 3734 Cannons 6549 | . 429 92 1434 143 . 449 776 . 365 259 . . 498 . 1091 146 . . . . . . . . . 222 645 Explosions 6960 | . . . 255 357 158 . . . . 460 . . 753 . 284 . . . 415 . 392 . . . . . 3886 Melee 4539 | . . . . . . . . 474 . . 140 . 1901 . . 1462 484 . . . . . . 78 . . . Ramming . | . . . . . . . . . . . . . . . . . . . . . . . . . . . . Kinetic 37492 | 165 1094 92 1755 246 1466 588 3309 1710 2218 2746 2266 63 2200 . 1091 3244 . 402 3628 248 473 . 550 2857 501 1268 3312 Thermal 6226 | 171 . . 1107 143 . 449 443 465 . . . . 1185 . . 1228 . . . . . 209 . . . . 826 Explosive 6839 | . . . 255 357 158 . . . . 460 . . 753 . 284 . . . 294 . 392 . . . . . 3886 Electromagnetic 121 | . . . . . . . . . . . . . . . . . . . 121 . . . . . . . . Impact . | . . . . . . . . . . . . . . . . . . . . . . . . . . . . Slashing 4681 | . . . . . . . . 474 . . 140 . 1901 . . 1462 484 . . . . . . . . . 220 Piercing 78 | . . . . . . . . . . . . . . . . . . . . . . . . 78 . . . Entropic 241 | . . . . . . . . . . . . . . . . . . . . . . . . . . . 241 Highest Corruption 81 | . . . . . . . 4 6 6 8 8 . 3 . . . . . 3 4 4 4 4 6 . . 81 Average Corruption 5 | . . . . . . . 4 5 6 7 8 . 2 . . . . . 2 3 4 4 4 5 . . 39 Corruption Purged . | . . . . . . . . . . . . . . . . . . . . . . . . . . . . Corruption Blocked . | . . . . . . . . . . . . . . . . . . . . . . . . . . . . Effects 278 | . . . . . . . 16 30 22 59 35 . . . . . . . 36 20 10 5 23 3 . . 19 Message Errors 50 | . . . . . . . 3 5 4 11 6 . . . . . . . 9 4 1 2 4 1 . . . Matter Fused 57 | . . . . . . . 5 8 3 8 9 . . . . . . . 7 5 5 1 3 . . . 3 Heat Flow Errors 36 | . . . . . . . 2 2 2 14 5 . . . . . . . 1 2 1 1 6 . . . . Energy Discharges 32 | . . . . . . . . 4 4 9 3 . . . . . . . 5 2 1 1 2 1 . . . Parts Rejected 6 | . . . . . . . . . 1 1 1 . . . . . . . . . . . 2 . . . 1 Parts Fused 5 | . . . . . . . . . . 1 . . . . . . . . 1 1 . . 1 . . . 1 Data Loss (minor) 31 | . . . . . . . 2 3 1 7 4 . . . . . . . 5 3 1 . 2 1 . . 2 Data Loss (major) 16 | . . . . . . . 1 4 3 3 1 . . . . . . . 2 1 . . 1 . . . . Misfires 16 | . . . . . . . 1 2 2 1 3 . . . . . . . 2 2 1 . 1 . . . 1 Alerts 6 | . . . . . . . 1 1 1 1 1 . . . . . . . 1 . . . . . . . . Weapon Failures 23 | . . . . . . . 1 1 1 3 2 . . . . . . . 3 . . . 1 . . . 11 Overload Shots . | . . . . . . . . . . . . . . . . . . . . . . . . . . . . Overflow Damage 744 | . . . 1 35 . 4 14 56 . 49 32 . 66 . 7 76 143 . . . 30 . . 86 . . 145 Projectiles 93 | . . . 1 . . 4 14 . . . . . 24 . 7 . . . . . . . . . . . 43 Explosions 258 | . . . . 35 . . . . . 49 . . 42 . . . . . . . 30 . . . . . 102 Melee 393 | . . . . . . . . 56 . . 32 . . . . 76 143 . . . . . . 86 . . . Knockbacks 42 | . 7 1 3 . . . 4 . 4 6 . . 4 . 4 1 . . . . . . . . . 2 6 Impact . | . . . . . . . . . . . . . . . . . . . . . . . . . . . . Kinetic 41 | . 7 1 3 . . . 3 . 4 6 . . 4 . 4 1 . . . . . . . . . 2 6 Secondary 1 | . . . . . . . 1 . . . . . . . . . . . . . . . . . . . . Self-Inflicted Damage 408 | . . . . . 39 . . . . . . . 57 . . . . . . . . . . . . . 312 Shots 8 | . . . . . 1 . . . . . . . 2 . . . . . . . . . . . . . 5 Rammed 1 | . . . . . . . . . . . . . . . . . . . 1 . . . . . . . . Targets Rammed 1 | . . . . . . . . . . . . . . . . . . . 1 . . . . . . . . Kicked . | . . . . . . . . . . . . . . . . . . . . . . . . . . . . Crushed . | . . . . . . . . . . . . . . . . . . . . . . . . . . . . Highest Temperature 560 | . 167 111 435 . 153 394 560 341 414 410 269 82 270 . 196 424 16 . 216 235 135 177 163 30 . 2 397 Average Temperature 75 | . 48 48 38 . 77 96 89 98 100 90 88 47 61 . 79 82 7 . 14 121 55 94 69 17 . 2 96 Received Heat Transfer 3485 | . 183 . 267 . . . 387 117 126 540 162 . 288 . 36 444 . . 195 12 36 . . 157 11 149 375 Effects 16 | . . . . . . . 8 . 5 1 . . 1 . . . . . . . . . . . . . 1 Shutdowns 1 | . . . . . . . . . 1 . . . . . . . . . . . . . . . . . . Energy Bleed 1 | . . . . . . . . . . . . . . . . . . . . . . . . . . . 1 Interference 9 | . . . . . . . 7 . 1 . . . 1 . . . . . . . . . . . . . . Matter Decay 1 | . . . . . . . . . . 1 . . . . . . . . . . . . . . . . . Damage (minor) 1 | . . . . . . . 1 . . . . . . . . . . . . . . . . . . . . Damage (major) 3 | . . . . . . . . . 3 . . . . . . . . . . . . . . . . . . Siege Activations . | . . . . . . . . . . . . . . . . . . . . . . . . . . . . Martial Activations . | . . . . . . . . . . . . . . . . . . . . . . . . . . . . Shielding Activations . | . . . . . . . . . . . . . . . . . . . . . . . . . . . . Robots Disrupted . | . . . . . . . . . . . . . . . . . . . . . . . . . . . . Combat Hostiles . | . . . . . . . . . . . . . . . . . . . . . . . . . . . . Robots Corrupted . | . . . . . . . . . . . . . . . . . . . . . . . . . . . . Combat Hostiles . | . . . . . . . . . . . . . . . . . . . . . . . . . . . . Parts Fried . | . . . . . . . . . . . . . . . . . . . . . . . . . . . . Impact Corruptions . | . . . . . . . . . . . . . . . . . . . . . . . . . . . . Robots Melted 5 | . . . . . . . . . . . . . 2 . . 2 . . . . . . . . . . 1 Combat Hostiles 5 | . . . . . . . . . . . . . 2 . . 2 . . . . . . . . . . 1 Parts Melted 15 | . . . . . . 2 1 . . . . . 5 . . 3 . . 1 . . . . . . . 3 Heat Transferred 13981 | 375 . . 1998 259 . 777 851 1517 . . . . 2825 . . 3549 . . . . . 444 . . . . 1386 Parts Sabotaged . | . . . . . . . . . . . . . . . . . . . . . . . . . . . . Parts Stolen . | . . . . . . . . . . . . . . . . . . . . . . . . . . . . Parts Stripped . | . . . . . . . . . . . . . . . . . . . . . . . . . . . . Power Chain Reactions . | . . . . . . . . . . . . . . . . . . . . . . . . . . . . Alert | -11 -10 -10 -9 -9 -9 -8 -8 -8 -8 -8 -8 -7 -7 -6 -6 -6 -5 -5 -5 -5 -5 -5 -4 -4 -4 -4 -4 ------- Run | Yrd Mat Min Mat Min Exi Min Mat Gar Mat Gar Mat Fac Gar Fac DSF Gar Fac Was Fac Upp Upp Zhi Pro Fac Upp Upp War Maximum Alert Level 5 | . . . 2 1 . . 2 4 4 5 3 2 4 3 3 5 3 . 3 . . . . 3 . . . Low Security (%) 43 | 100 100 100 14 58 . 100 25 . . . . . . . . . . 100 55 . . . . . . . . Level 1 15 | . . . 73 41 . . 58 14 . . . 52 10 . . . . . 21 . . . . . . . . Level 2 10 | . . . 11 . . . 16 35 13 . . 47 12 . 31 7 38 . 16 . . . . 57 . . . Level 3 17 | . . . . . . . . 22 79 21 100 . 37 100 68 30 61 . 7 . . . . 42 . . . Level 4 8 | . . . . . . . . 27 7 35 . . 39 . . 28 . . . . . . . . . . . Level 5 4 | . . . . . . . . . . 42 . . . . . 32 . . . . . . . . . . . High Security . | . . . . . . . . . . . . . . . . . . . . . . . . . . . . Max Security . | . . . . . . . . . . . . . . . . . . . . . . . . . . . . Sterilizations 1 | . . . . . . . . . . . . . . . 1 . . . . . . . . . . . . Peak Influence 2240 | 10 119 84 550 328 . 145 420 1362 1142 2240 1092 423 1428 754 835 2013 1056 195 945 . . . . 900 . . . Initial 1092 | . 3 21 8 129 . . 3 260 663 737 1092 423 249 749 527 626 1056 195 . . . . . 900 . . . Average 476 | 2 34 21 276 203 . 42 267 793 854 1486 927 389 965 752 732 1329 786 7 254 . . . . 714 . . . Influence Increases 15442 | 40 475 171 1273 404 . 336 1161 1112 813 1653 568 34 1239 5 308 1437 174 6 1478 30 195 15 170 1400 95 160 690 Destroy 0b10 Robot/C 8420 | . 260 120 800 240 . 200 660 460 520 880 360 . 660 . 220 760 . . 780 20 160 . 140 280 80 140 680 Destroy 0b10 Robot/NC 830 | 40 40 . 105 15 . 60 75 15 55 . 60 5 35 . 5 45 30 . 140 . . 15 10 55 5 10 10 Destroy Leader 1344 | . 66 20 230 40 . 40 178 30 134 30 98 . 50 . 30 60 . . 214 10 20 . 20 54 10 10 . Allied During Kill 137 | . . 22 35 . . . . 3 25 21 . . . . . . . . 31 . . . . . . . . Successful Hack 319 | . 26 . 38 19 . . 60 . 5 . 10 28 . 5 . . 16 . 64 . . . . 48 . . . Select Force Hacks 60 | . 60 . . . . . . . . . . . . . . . . . . . . . . . . . . Disable Machine 420 | . 15 . 45 60 . . 15 30 15 30 15 . 15 . . 15 60 . 105 . . . . . . . . Anti-Garrison Action 1900 | . . . . . . . . 500 . 550 . . 400 . . 450 . . . . . . . . . . . Destroy Structure 677 | . 8 9 20 15 . 6 23 59 14 97 10 1 79 . 38 92 68 6 84 . . . . 48 . . . Advance Influence 900 | . . . . . . . . . . . . . . . . . . . . . . . . 900 . . . Partial Spotted 30 | . . . . . . . 15 . . . 15 . . . . . . . . . . . . . . . . Lose Combat Pursuer 405 | . . . . 15 . 30 135 15 45 45 . . . . 15 15 . . 60 . 15 . . 15 . . . Influence Decreases 15271 | 35 426 203 964 612 123 327 770 150 1041 547 1876 609 168 679 227 259 1629 564 543 689 307 179 170 662 744 249 519 Entered New Map 6671 | . 2 33 14 202 123 . 6 140 699 397 1148 509 108 679 227 209 957 363 . 347 53 164 . . 274 17 . Time Decay 6351 | 35 414 170 590 410 . 317 594 . 302 . 428 100 . . . . 362 201 493 342 254 15 160 342 470 212 140 Search Patrol Dispatched 300 | . . . . . . . . . . . . . . . . . . . . . . . . 300 . . . Lost Part 729 | . 10 . 20 . . 10 20 10 20 90 . . 60 . . 50 . . 10 . . . 10 20 . 20 379 Lost Ally 170 | . . . 40 . . . . . 20 60 . . . . . . 10 . 40 . . . . . . . . Purge Threat 1050 | . . . 300 . . . 150 . . . 300 . . . . . 300 . . . . . . . . . . Squads Dispatched 43 | . 4 . 6 . . . 4 . 5 . 4 . . . 1 . 2 . 13 . . . . 4 . . . Investigation 19 | . 3 . 3 . . . 1 . 2 . 4 . . . . . 1 . 3 . . . . 2 . . . Extermination 8 | . . . . . . . . . . . . . . . . . 1 . 5 . . . . 2 . . . Reinforcement 11 | . 1 . 3 . . . . . 1 . . . . . 1 . . . 5 . . . . . . . . Assault 1 | . . . . . . . . . 1 . . . . . . . . . . . . . . . . . . Garrison 4 | . . . . . . . 3 . 1 . . . . . . . . . . . . . . . . . . Intercept . | . . . . . . . . . . . . . . . . . . . . . . . . . . . . Searches Triggered 2 | . . . . . . . . . . . . . . . . . . . . . . . . 2 . . . Construction Impeded 1 | . . . . . . . . . . . . . . . . . . . 1 . . . . . . . . Haulers Reinforced 2 | . . . . . . . . . . . . . . . . . . . 2 . . . . . . . . Active Scanning Responses . | . . . . . . . . . . . . . . . . . . . . . . . . . . . . Cargo Convoy Interrupts . | . . . . . . . . . . . . . . . . . . . . . . . . . . . . Stealth | -11 -10 -10 -9 -9 -9 -8 -8 -8 -8 -8 -8 -7 -7 -6 -6 -6 -5 -5 -5 -5 -5 -5 -4 -4 -4 -4 -4 --------- Run | Yrd Mat Min Mat Min Exi Min Mat Gar Mat Gar Mat Fac Gar Fac DSF Gar Fac Was Fac Upp Upp Zhi Pro Fac Upp Upp War Distress Signals 19 | . 1 . 3 . . . 3 . 3 . 1 . . . . 1 . . 2 . . . 1 1 . . 3 Communications Jammed . | . . . . . . . . . . . . . . . . . . . . . . . . . . . . Distress Signals . | . . . . . . . . . . . . . . . . . . . . . . . . . . . . Times Spotted 535 | . 26 3 56 11 7 12 53 21 33 46 24 . 32 . 10 41 . . 52 2 7 . 13 18 4 7 57 Peak Tracking Total 11 | . 6 2 6 4 11 4 7 6 4 8 4 . 10 . 4 4 . . 5 1 4 . 5 3 2 5 11 Tactical Retreats 22 | . . . . 1 1 1 4 1 3 3 . . . . 1 1 . . 4 . 1 . . 1 . . . Traps | -11 -10 -10 -9 -9 -9 -8 -8 -8 -8 -8 -8 -7 -7 -6 -6 -6 -5 -5 -5 -5 -5 -5 -4 -4 -4 -4 -4 ------- Run | Yrd Mat Min Mat Min Exi Min Mat Gar Mat Gar Mat Fac Gar Fac DSF Gar Fac Was Fac Upp Upp Zhi Pro Fac Upp Upp War Traps Triggered 43 | . 5 . 1 . . . 2 5 2 7 . . 7 . 3 7 2 . 2 . . . . . . . . Indirectly . | . . . . . . . . . . . . . . . . . . . . . . . . . . . . Trap Hack Attempts . | . . . . . . . . . . . . . . . . . . . . . . . . . . . . Triggered . | . . . . . . . . . . . . . . . . . . . . . . . . . . . . Disarmed . | . . . . . . . . . . . . . . . . . . . . . . . . . . . . Reprogrammed . | . . . . . . . . . . . . . . . . . . . . . . . . . . . . Reused . | . . . . . . . . . . . . . . . . . . . . . . . . . . . . Traps Extracted . | . . . . . . . . . . . . . . . . . . . . . . . . . . . . Installed . | . . . . . . . . . . . . . . . . . . . . . . . . . . . . Triggered . | . . . . . . . . . . . . . . . . . . . . . . . . . . . . Machines | -11 -10 -10 -9 -9 -9 -8 -8 -8 -8 -8 -8 -7 -7 -6 -6 -6 -5 -5 -5 -5 -5 -5 -4 -4 -4 -4 -4 ---------- Run | Yrd Mat Min Mat Min Exi Min Mat Gar Mat Gar Mat Fac Gar Fac DSF Gar Fac Was Fac Upp Upp Zhi Pro Fac Upp Upp War Machines Disabled 62 | . 1 . 3 4 7 . 1 9 1 6 1 . 4 . 1 7 4 . 7 . . . . . 1 . 5 Max in Single Turn 4 | . 1 . 1 2 1 . 1 1 . 1 1 . 1 . 1 1 4 . 2 . . . . . 1 . 1 Garrison Access 2 | . . . . . . . . . . . . . . . . . 1 . 1 . . . . . . . . Garrison Relay 17 | . . . . . . . . 5 . 4 . . 3 . . 5 . . . . . . . . . . . Phase Generator 1 | . . . . . . . . 1 . . . . . . . . . . . . . . . . . . . Machines Repaired . | . . . . . . . . . . . . . . . . . . . . . . . . . . . . Machines Dismantled 5 | . . . . . . . . 2 . 1 . . . . . . . . . . . . . . 1 . 1 Machines Sabotaged . | . . . . . . . . . . . . . . . . . . . . . . . . . . . . Overloaded Fab Kills . | . . . . . . . . . . . . . . . . . . . . . . . . . . . . Hacking | -11 -10 -10 -9 -9 -9 -8 -8 -8 -8 -8 -8 -7 -7 -6 -6 -6 -5 -5 -5 -5 -5 -5 -4 -4 -4 -4 -4 --------- Run | Yrd Mat Min Mat Min Exi Min Mat Gar Mat Gar Mat Fac Gar Fac DSF Gar Fac Was Fac Upp Upp Zhi Pro Fac Upp Upp War Machines Accessed 106 | . 9 . 15 1 2 . 9 2 6 4 7 4 2 1 . 1 8 . 14 1 . 4 . 5 1 1 9 Terminals 60 | . 6 . 10 1 . . 6 2 5 4 4 3 2 1 . 1 5 . 7 . . . . 2 . 1 . Fabricators 4 | . . . . . . . . . . . . . . . . . . . 3 . . . . 1 . . . Repair Stations 7 | . 1 . 2 . . . . . . . 2 . . . . . . . 2 . . . . . . . . Recycling Units 5 | . 2 . 2 . . . . . . . 1 . . . . . . . . . . . . . . . . Scanalyzers 5 | . . . 1 . . . 2 . . . . . . . . . 1 . . . . . . 1 . . . Garrison Access 8 | . . . . . . . 1 . 1 . . 1 . . . . 2 . 2 . . . . 1 . . . Total Hacks 295 | . 22 . 53 6 2 . 37 7 13 8 17 10 4 2 . 1 16 . 33 1 . 16 . 18 1 1 27 Successful 155 | . 14 . 24 3 2 . 18 2 3 1 10 3 . 1 . 1 8 . 12 1 . 16 . 7 1 1 27 Failed 140 | . 8 . 29 3 . . 19 5 10 7 7 7 4 1 . . 8 . 21 . . . . 11 . . . Catastrophic 31 | . . . 3 2 . . 2 . 2 4 1 2 2 . . . 4 . 7 . . . . 2 . . . Database Lockouts . | . . . . . . . . . . . . . . . . . . . . . . . . . . . . Manual 90 | . 16 . 16 5 1 . 19 1 5 . 8 1 . . . . 2 . 10 . . . . 6 . . . Terminals 159 | . 15 . 36 6 . . 22 7 10 8 8 8 4 2 . 1 10 . 15 . . . . 6 . 1 . Fabricators 16 | . . . . . . . . . . . . . . . . . . . 10 . . . . 6 . . . Repair Stations 23 | . 3 . 8 . . . . . . . 6 . . . . . . . 6 . . . . . . . . Recycling Units 11 | . 4 . 4 . . . . . . . 3 . . . . . . . . . . . . . . . . Scanalyzers 22 | . . . 5 . . . 10 . . . . . . . . . 3 . . . . . . 4 . . . Garrison Access 17 | . . . . . . . 5 . 3 . . 2 . . . . 3 . 2 . . . . 2 . . . Terminal Hacks 88 | . 3 . 9 3 2 . 5 1 1 1 3 2 . 1 . 1 4 . 4 1 . 16 . 2 1 1 27 Record 28 | . . . . . 1 . . . . . . . . . . . . . . . . 5 . . . 1 21 Part Schematic 8 | . 1 . 1 2 . . 1 . . . . . . . . . . . . . . 3 . . . . . Robot Schematic 1 | . 1 . . . . . . . . . . . . . . . . . . . . . . . . . . Robot Analysis 4 | . . . . . . . . . . . . . . . . . . . . . . 4 . . . . . Prototype ID Bank 14 | . . . 3 . . . 1 . . . . 1 . . . . . . . . . 4 . . . . 5 Open Door 3 | . . . . . . . . . . . . . . . . . . . . 1 . . . . 1 . 1 Open DSF 1 | . . . . . . . . . . . . . . 1 . . . . . . . . . . . . . Branch Access Points 3 | . . . 1 . . . . . . . . . . . . . 1 . 1 . . . . . . . . Emergency Access Points 1 | . . . . . . . . . . . . . . . . 1 . . . . . . . . . . . Terminal Index 1 | . . . . . . . . . . . . . . . . . . . 1 . . . . . . . . Fabricator Index 1 | . . . . . . . . . . . . . . . . . . . 1 . . . . . . . . Scanalyzer Index 1 | . . . . . . . 1 . . . . . . . . . . . . . . . . . . . . Alert Level 2 | . . . . . . . . . . . . 1 . . . . 1 . . . . . . . . . . Unreport Threat 7 | . . . 2 . . . 1 . . . 2 . . . . . 2 . . . . . . . . . . Locate Traps 5 | . 1 . 1 . . . . . . . 1 . . . . . . . 1 . . . . 1 . . . Registered Components 2 | . . . . . . . 1 . . . . . . . . . . . . . . . . 1 . . . Zone Layout 3 | . . . 1 1 . . . . 1 . . . . . . . . . . . . . . . . . . Garrison Registry 1 | . . . . . . . . 1 . . . . . . . . . . . . . . . . . . . Patrol Navigation 1 | . . . . . . . . . . 1 . . . . . . . . . . . . . . . . . Proto ID Catalog 1 | . . . . . 1 . . . . . . . . . . . . . . . . . . . . . . Fabricator Hacks 4 | . . . . . . . . . . . . . . . . . . . 2 . . . . 2 . . . Network Status 1 | . . . . . . . . . . . . . . . . . . . . . . . . 1 . . . Load Schematic 2 | . . . . . . . . . . . . . . . . . . . 1 . . . . 1 . . . Build 1 | . . . . . . . . . . . . . . . . . . . 1 . . . . . . . . Repair Station Hacks 9 | . 1 . 4 . . . . . . . 4 . . . . . . . . . . . . . . . . Scan Component 6 | . 1 . 3 . . . . . . . 2 . . . . . . . . . . . . . . . . Repair 3 | . . . 1 . . . . . . . 2 . . . . . . . . . . . . . . . . Recycling Unit Hacks 4 | . 2 . 2 . . . . . . . . . . . . . . . . . . . . . . . . Retrieve Components 4 | . 2 . 2 . . . . . . . . . . . . . . . . . . . . . . . . Scanalyzer 16 | . . . 4 . . . 7 . . . . . . . . . 3 . . . . . . 2 . . . Insert Component 7 | . . . 2 . . . 3 . . . . . . . . . 1 . . . . . . 1 . . . Analyze 9 | . . . 2 . . . 4 . . . . . . . . . 2 . . . . . . 1 . . . Garrison Access Hacks 5 | . . . . . . . 1 . 1 . . 1 . . . . 1 . 1 . . . . . . . . Unlock Access 3 | . . . . . . . 1 . 1 . . 1 . . . . . . . . . . . . . . . Seal Access 2 | . . . . . . . . . . . . . . . . . 1 . 1 . . . . . . . . Unauthorized Hacks 29 | . 8 . 5 . . . 5 1 1 . 3 . . . . . . . 5 . . . . 1 . . . Terminals 21 | . 6 . 5 . . . 5 1 1 . 2 . . . . . . . . . . . . 1 . . . Track 1 | . . . . . . . . . . . . . . . . . . . . . . . . 1 . . . Operators 1 | . 1 . . . . . . . . . . . . . . . . . . . . . . . . . . Skim 15 | . 5 . 5 . . . 5 . . . . . . . . . . . . . . . . . . . . Search 3 | . . . . . . . . . 1 . 2 . . . . . . . . . . . . . . . . Override 1 | . . . . . . . . 1 . . . . . . . . . . . . . . . . . . . Fabricators 3 | . . . . . . . . . . . . . . . . . . . 3 . . . . . . . . Report 1 | . . . . . . . . . . . . . . . . . . . 1 . . . . . . . . Liberate 1 | . . . . . . . . . . . . . . . . . . . 1 . . . . . . . . Haulers 1 | . . . . . . . . . . . . . . . . . . . 1 . . . . . . . . Repair Stations 3 | . . . . . . . . . . . 1 . . . . . . . 2 . . . . . . . . Patch 3 | . . . . . . . . . . . 1 . . . . . . . 2 . . . . . . . . Recycling Units 2 | . 2 . . . . . . . . . . . . . . . . . . . . . . . . . . Tunnel 2 | . 2 . . . . . . . . . . . . . . . . . . . . . . . . . . Scanalyzers . | . . . . . . . . . . . . . . . . . . . . . . . . . . . . Garrison Access . | . . . . . . . . . . . . . . . . . . . . . . . . . . . . Data Cores Recovered 1 | . . . . . . . . . . . . . . . . . . . 1 . . . . . . . . Used . | . . . . . . . . . . . . . . . . . . . . . . . . . . . . Hacking Detections 79 | . 7 . 14 1 . . 9 2 6 4 4 4 2 . . . 8 . 13 . . . . 5 . . . Full Trace Events 16 | . 1 . 2 . . . 2 1 1 3 1 . 1 . . . 1 . 1 . . . . 2 . . . Feedback Events 2 | . . . . . . . . . . 1 . . . . . . . . . . . . . 1 . . . Corruption 2 | . . . . . . . . . . 1 . . . . . . . . . . . . . 1 . . . Feedback Blocked . | . . . . . . . . . . . . . . . . . . . . . . . . . . . . Robot Schematics Acquired 1 | . 1 . . . . . . . . . . . . . . . . . . . . . . . . . . Robots Built . | . . . . . . . . . . . . . . . . . . . . . . . . . . . . Authchips . | . . . . . . . . . . . . . . . . . . . . . . . . . . . . Time . | . . . . . . . . . . . . . . . . . . . . . . . . . . . . Total Robot Build Rating . | . . . . . . . . . . . . . . . . . . . . . . . . . . . . Part Schematics Acquired 13 | . 1 . 2 2 . . 3 . . . . . . . . . 1 . . . . 3 . 1 . . . Parts Built 1 | . . . . . . . . . . . . . . . . . . . 1 . . . . . . . . Authchips 1 | . . . . . . . . . . . . . . . . . . . 1 . . . . . . . . Time 84 | . . . . . . . . . . . . . . . . . . . 84 . . . . . . . . Total Part Build Rating 6 | . . . . . . . . . . . . . . . . . . . 6 . . . . . . . . Parts Repaired 3 | . . . 1 . . . . . . . 2 . . . . . . . . . . . . . . . . Time 164 | . . . 44 . . . . . . . 120 . . . . . . . . . . . . . . . . Parts Recycled . | . . . . . . . . . . . . . . . . . . . . . . . . . . . . Recycled Matter . | . . . . . . . . . . . . . . . . . . . . . . . . . . . . Retrieved Matter . | . . . . . . . . . . . . . . . . . . . . . . . . . . . . Retrieved Components 38 | . 19 . 19 . . . . . . . . . . . . . . . . . . . . . . . . Parts Scanalyzed 5 | . . . 1 . . . 2 . . . . . . . . . 1 . . . . . . 1 . . . Part Schematics Acquired 5 | . . . 1 . . . 2 . . . . . . . . . 1 . . . . . . 1 . . . Parts Damaged . | . . . . . . . . . . . . . . . . . . . . . . . . . . . . Bothacking | -11 -10 -10 -9 -9 -9 -8 -8 -8 -8 -8 -8 -7 -7 -6 -6 -6 -5 -5 -5 -5 -5 -5 -4 -4 -4 -4 -4 ------------ Run | Yrd Mat Min Mat Min Exi Min Mat Gar Mat Gar Mat Fac Gar Fac DSF Gar Fac Was Fac Upp Upp Zhi Pro Fac Upp Upp War Used RIF Installer . | . . . . . . . . . . . . . . . . . . . . . . . . . . . . Robots Hacked 5 | . . . . . 5 . . . . . . . . . . . . . . . . . . . . . . Non-combat 3 | . . . . . 3 . . . . . . . . . . . . . . . . . . . . . . Combat 2 | . . . . . 2 . . . . . . . . . . . . . . . . . . . . . . Robot Hacks Applied 5 | . . . . . 5 . . . . . . . . . . . . . . . . . . . . . . parse_system 5 | . . . . . 5 . . . . . . . . . . . . . . . . . . . . . . Relay Couplers Released 67 | . . . . . . . . 17 . 17 . . 14 . . 19 . . . . . . . . . . . Machine Destruction 64 | . . . . . . . . 17 . 17 . . 11 . . 19 . . . . . . . . . . . Programmers 3 | . . . . . . . . . . . . . 3 . . . . . . . . . . . . . . Fabnet Peak Effective % . | . . . . . . . . . . . . . . . . . . . . . . . . . . . . Robots Rewired 5 | . . . . . . . . . . 3 . . . . . 2 . . . . . . . . . . . Allies Hacked . | . . . . . . . . . . . . . . . . . . . . . . . . . . . . Hacks Repelled . | . . . . . . . . . . . . . . . . . . . . . . . . . . . . Allies | -11 -10 -10 -9 -9 -9 -8 -8 -8 -8 -8 -8 -7 -7 -6 -6 -6 -5 -5 -5 -5 -5 -5 -4 -4 -4 -4 -4 -------- Run | Yrd Mat Min Mat Min Exi Min Mat Gar Mat Gar Mat Fac Gar Fac DSF Gar Fac Was Fac Upp Upp Zhi Pro Fac Upp Upp War Total Allies 16 | . . 3 . . 2 . . 2 . 3 . . . . . 2 . 1 3 . . . . . . . . Largest Group 3 | . . 3 3 . 2 . . 2 2 3 . . . . . 2 2 2 3 . . . . . . . . Highest-Rated Group 87 | . . 40 40 . 59 . . 51 51 81 . . . . . 84 84 84 87 . . . . . . . . Highest-Rated Ally 43 | . . 16 16 . 36 . . 31 31 31 . . . . . 43 43 43 43 . . . . . . . . Initial Warlord ECA Mod 575 | . . . . . . . . . 10 10 18 17 17 23 23 33 39 39 39 39 39 39 38 38 38 38 38 Total Orders 1 | . . . . . . . . . . . . . . . . . 1 . . . . . . . . . . EXPLORE 1 | . . . . . . . . . . . . . . . . . 1 . . . . . . . . . . Ally Attacks 106 | . . 13 14 . 6 . . . 16 16 . . . . . . . . 41 . . . . . . . . Total Damage 1322 | . . 151 157 . . . . . 219 248 . . . . . . . . 547 . . . . . . . . Kills 15 | . . 4 3 . . . . . 3 3 . . . . . . . . 2 . . . . . . . . Allies Corrupted . | . . . . . . . . . . . . . . . . . . . . . . . . . . . . Allies Melted 1 | . . . . . . . . . . . . . . . . . . . . . . . . . . . 1 Field Lobotomies 2 | . . . . . 2 . . . . . . . . . . . . . . . . . . . . . . Intel | -11 -10 -10 -9 -9 -9 -8 -8 -8 -8 -8 -8 -7 -7 -6 -6 -6 -5 -5 -5 -5 -5 -5 -4 -4 -4 -4 -4 ------- Run | Yrd Mat Min Mat Min Exi Min Mat Gar Mat Gar Mat Fac Gar Fac DSF Gar Fac Was Fac Upp Upp Zhi Pro Fac Upp Upp War Active Infowar (turns) 16821 | 72 801 . . . . . . 499 669 1758 . . 184 . . 52 416 4921 1523 . 386 391 698 760 1185 1399 1107 IFF 12635 | . . . . . . . . . . . . . . . . . 269 4919 1521 . 386 391 698 760 1185 1399 1107 Terrain 371 | . . . . . . . . . . . . . . . . . . . 2 . . . . . . . 369 Seismic 1810 | 72 801 . . . . . . 499 . 202 . . 184 . . 52 . . . . . . . . . . . Machine Analysis 2843 | . . . . . . . . . 669 1758 . . . . . . 416 . . . . . . . . . . ECM 2 | . . . . . . . . . . . . . . . . . . 2 . . . . . . . . . Robot Analysis Total 4 | . . . . . . . . . . . . . . . . . . . . . . 4 . . . . . Derelict Logs Recovered 10 | . . 1 . 3 . . . . . . . . . . . . . . . 2 2 . 1 . . 1 . Drone Launches 1 | . . . . . . . . . . . . . . . . . 1 . . . . . . . . . . Drone Recoveries . | . . . . . . . . . . . . . . . . . . . . . . . . . . . . Exploration | -11 -10 -10 -9 -9 -9 -8 -8 -8 -8 -8 -8 -7 -7 -6 -6 -6 -5 -5 -5 -5 -5 -5 -4 -4 -4 -4 -4 ------------- Run | Yrd Mat Min Mat Min Exi Min Mat Gar Mat Gar Mat Fac Gar Fac DSF Gar Fac Was Fac Upp Upp Zhi Pro Fac Upp Upp War Turns Passed 37973 | 158 1631 1401 2376 993 2090 1052 2188 1496 678 1811 1049 210 1989 18 363 2062 835 5604 2505 764 550 395 866 760 1185 1399 1545 Spaces Moved 19015 | 103 1026 715 1255 594 1190 577 1049 680 306 865 513 167 1087 5 196 926 521 761 1593 605 421 263 605 434 833 951 774 Core 148 | 1 1 . . . . . . . . . . . . . . . . 146 . . . . . . . . . Treads . | . . . . . . . . . . . . . . . . . . . . . . . . . . . . Legs . | . . . . . . . . . . . . . . . . . . . . . . . . . . . . Wheels 18867 | 102 1025 715 1255 594 1190 577 1049 680 306 865 513 167 1087 5 196 926 521 615 1593 605 421 263 605 434 833 951 774 Hover . | . . . . . . . . . . . . . . . . . . . . . . . . . . . . Flight . | . . . . . . . . . . . . . . . . . . . . . . . . . . . . Fastest Speed 50 | 50 80 140 140 155 140 140 140 145 150 135 150 115 115 120 120 115 129 129 123 123 123 123 123 124 129 129 124 Average Speed 162 | 79 122 140 152 155 145 154 156 151 150 150 150 115 129 120 120 149 137 727 127 123 123 123 128 131 134 132 130 Slowest Speed 3250 | 80 450 140 155 155 210 155 245 230 210 210 150 115 155 120 135 255 145 3250 132 123 123 123 130 145 141 180 210 Overloaded Moves . | . . . . . . . . . . . . . . . . . . . . . . . . . . . . Propulsion Burnouts . | . . . . . . . . . . . . . . . . . . . . . . . . . . . . Robots Hopped 1 | . . . . . . . . . 1 . . . . . . . . . . . . . . . . . . Potential Cave-ins . | . . . . . . . . . . . . . . . . . . . . . . . . . . . . Cave-ins Triggered . | . . . . . . . . . . . . . . . . . . . . . . . . . . . . Teleports 1 | . . . . . . . . . . . . . . . . . . . . . . . . . . . 1 Exploration Rate (%) 67 | 6 99 97 98 98 89 91 80 82 39 88 39 6 76 . 89 90 12 95 44 70 53 60 69 13 78 67 90 Regions Visited 27 Branch Regions 11 Pre-discovered Areas 13 | . 4 . 1 2 1 . . . . . . . . . . . . . . 2 . 3 . . . . . Known Exits Taken 11 | . . 1 1 . . 1 1 . 1 . 1 1 . 1 . . . . 1 . . . 1 1 . . . Unknown Exits Taken 9 | 1 1 . . 1 1 . . . . . . . . . . . . . . 1 1 1 . . 1 1 . Scrap Searched 21 | . . 1 . 3 . 3 . . . . . . . . . . . . . 3 2 . 3 . 3 3 . Spaces Dug 248 | . 7 7 13 7 21 1 . 3 . 39 3 1 36 . 26 6 51 1 5 . . . 1 10 . . 10 Terrain Destroyed 674 | . 9 10 13 15 38 11 12 9 16 44 3 1 40 . 46 22 56 6 33 4 8 . 10 39 11 49 169 Melee 59 | . . . . . . . . 3 . 31 3 . 11 . . 4 2 . 5 . . . . . . . . Projectile 345 | . 9 10 . . . 11 12 5 16 2 . 1 2 . 20 14 14 3 11 4 2 . 10 39 11 48 101 AOE 238 | . . . 13 15 38 . . . . 10 . . 24 . 26 . 40 . . . 6 . . . . . 66 Terrain Rammed . | . . . . . . . . . . . . . . . . . . . . . . . . . . . . Walls Destroyed . | . . . . . . . . . . . . . . . . . . . . . . . . . . . . Machines Disabled . | . . . . . . . . . . . . . . . . . . . . . . . . . . . . Actions | -11 -10 -10 -9 -9 -9 -8 -8 -8 -8 -8 -8 -7 -7 -6 -6 -6 -5 -5 -5 -5 -5 -5 -4 -4 -4 -4 -4 --------- Run | Yrd Mat Min Mat Min Exi Min Mat Gar Mat Gar Mat Fac Gar Fac DSF Gar Fac Was Fac Upp Upp Zhi Pro Fac Upp Upp War Total 23222 | 140 1234 1082 1519 626 1426 645 1393 893 408 1123 750 183 1410 13 309 1274 612 801 1838 615 435 308 647 530 863 1025 1120 Wait 1221 | . 45 336 85 4 84 4 154 24 16 23 130 . 31 . . 28 29 5 27 . . 1 1 11 . 42 141 Move 18988 | 102 1025 714 1254 593 1189 576 1049 679 304 864 512 166 1085 4 195 925 521 760 1592 604 420 262 604 433 832 950 774 Hop 1 | . . . . . . . . . 1 . . . . . . . . . . . . . . . . . . Pick Up 357 | 10 27 8 32 2 34 6 23 9 12 10 15 3 26 . 23 17 8 5 24 3 1 6 5 13 3 3 29 Fast Attach 105 | 7 10 . 4 . 1 1 19 1 6 1 3 . 6 . 4 15 4 2 7 . . 6 3 1 1 1 2 Attach 124 | . 1 . 5 . 11 1 4 2 5 9 . 2 8 2 3 9 2 1 5 . 1 2 4 5 1 1 40 Detach 18 | . . . . . 2 . . . . . . . 2 . . 3 . . . . . 1 . . . . 10 Swap 430 | . 31 2 18 6 11 5 24 19 10 37 16 7 30 7 20 33 16 11 55 1 5 7 12 16 7 3 21 Drop 365 | 2 17 8 34 3 27 7 40 13 10 4 15 2 28 . 26 27 12 7 36 3 1 10 4 10 4 2 13 Fire 1230 | 19 78 14 87 18 61 45 80 94 44 82 54 3 116 . 14 130 12 9 78 4 7 13 14 40 9 23 82 Melee 173 | . . . . . 6 . . 19 . 61 5 . 38 . . 30 8 . 5 . . . . 1 . . . Ram 1 | . . . . . . . . . . . . . . . . . . . 1 . . . . . . . . Kick . | . . . . . . . . . . . . . . . . . . . . . . . . . . . . Crush . | . . . . . . . . . . . . . . . . . . . . . . . . . . . . Escape Stasis 168 | . . . . . . . . 16 . 24 . . 40 . 24 56 . . 8 . . . . . . . . Rewire 2 | . . . . . . . . . . . . . . . . 1 . 1 . . . . . . . . . Trap . | . . . . . . . . . . . . . . . . . . . . . . . . . . . . Miscellaneous 39 | . . . . . . . . 17 . 8 . . . . . . . . . . . . . . 6 . 8 Route ------- -11/Scrapyard -10/Materials (discovered 5 exits: *Mat x3 / [*Min] / *Sub) -10/Mines (discovered 3 exits: *Mat x2 / Sub) -9/Materials (discovered 5 exits: *Mat x3 / *Min x2) -9/Mines (discovered 4 exits: *Mat x2 / *Exi / [*Zio]) -9/Exiles -8/Mines (discovered 2 exits: *Mat x2) -8/Materials (discovered 4 exits: *Fac x3 / Gar) -8/Garrison (discovered 4 exits: *Fac x3 / *Mat) -8/Materials -8/Garrison (discovered 4 exits: *Mat x4) -8/Materials -7/Factory -7/Garrison (discovered 3 exits: *Fac x3) -6/Factory (discovered 2 exits: Ext / DSF) -6/DSF -6/Garrison (discovered 3 exits: *Fac x3) -5/Factory (discovered 2 exits: Upp x2) -5/Waste -5/Factory (discovered 3 exits: *Fac / *Upp x2) -5/Upper Caves -5/Upper Caves (discovered 2 exits: Fac / *Zhi) -5/Zhirov -4/Proximity Caves -4/Factory -4/Upper Caves -4/Upper Caves -4/Warlord History --------- Turn | Location | Event 5 | -11/Scrapyard | Discovered new exit (range 16) 159 | -11/Scrapyard | Entered Materials 319 | -10/Materials | Build established: Mutant 420 | -10/Materials | Discovered new exit (range 15) 506 | -10/Materials | Discovered new exit (range 16) 679 | -10/Materials | Build established: Scavenger-Mutant 925 | -10/Materials | Discovered new exit (range 12) 1035 | -10/Materials | Discovered new exit (range 8) 1202 | -10/Materials | Learned 4 Recycling zone layouts 1202 | -10/Materials | Discovered new exit (range 8) 1232 | -10/Materials | Identified exit to Materials 1232 | -10/Materials | Identified exit to Subcaves 1251 | -10/Materials | Learned Storage stockpile data 1259 | -10/Materials | Learned 4 Subcaves zone layouts 1260 | -10/Materials | Learned 2 Storage zone layouts 1261 | -10/Materials | Learned 4 Subcaves zone layouts 1262 | -10/Materials | Learned 4 Subcaves zone layouts 1263 | -10/Materials | Learned location of 2 exits from Mines 1264 | -10/Materials | Learned location of Mines (-10) 1385 | -10/Materials | Build established: Mutant 1790 | -10/Materials | Entered Mines 1799 | -10/Mines | Met a Derelict bent on vengeance 1815 | -10/Mines | Assembled infested the area 1820 | -10/Mines | Assisted by a Guerilla fighting off Assembled 2303 | -10/Mines | Discovered exit to Materials (range 13) 2499 | -10/Mines | Assisted by bots powering up and referring to "LRC-V3" 2619 | -10/Mines | Learned Materials terminal intel 2859 | -10/Mines | Found a damaged Exp. Sensor Array with a note attached 2863 | -10/Mines | Found Prototype Device 3191 | -10/Mines | Entered Materials 3191 | -9/Materials | Accompanied by 3 allies 3191 | -9/Materials | Evolved 2 slots: Weapon x2 3192 | -9/Materials | Loaded intel: 12 terminal locations 3753 | -9/Materials | Discovered new exit (range 10) 3772 | -9/Materials | Identified exit to Materials 3902 | -9/Materials | Build established: Scavenger-Gunner 4087 | -9/Materials | Discovered new exit (range 13) 4194 | -9/Materials | Discovered new exit (range 10) 4390 | -9/Materials | Identified exit to Mines 4482 | -9/Materials | Learned location of 1 exit from Storage 4549 | -9/Materials | Discovered exit to Materials (range 12) 4558 | -9/Materials | Learned location of Zion (-7) 4582 | -9/Materials | Learned location of 1 exit from Storage 4605 | -9/Materials | Learned location of 1 exit from Storage 4624 | -9/Materials | Loaded intel: 14 trap records 4907 | -9/Materials | Identified Exp. Sensor Array 5452 | -9/Materials | Repaired Broken Hvy. Assault Rifle 5567 | -9/Materials | Entered Mines 5657 | -9/Mines | Learned location of Recycling (-7) 5722 | -9/Mines | Learned location of Storage (-7) 5877 | -9/Mines | A weapon hastily lodged in a ceiling crevice suddenly fell to the ground 5993 | -9/Mines | Received a Rocket Launcher from a helpful Derelict 6045 | -9/Mines | Learned Materials security intel 6121 | -9/Mines | Discovered exit to Materials (range 6) 6150 | -9/Mines | A Derelict revealed a hidden shortcut to a safe place 6391 | -9/Mines | Discovered exit to Materials (range 11) 6552 | -9/Mines | Deemed a non-threat by the Exiles lab entrance 6554 | -9/Mines | Discovered new exit (range 5) 6560 | -9/Mines | Entered Exiles 6599 | -9/Exiles | Met 8R-AWN 6625 | -9/Exiles | Met EX-HEX 6672 | -9/Exiles | Met EX-BIN 6717 | -9/Exiles | Met EX-DEC 6800 | -9/Exiles | Visited The Gauntlet 6922 | -9/Exiles | Discovered new exit (range 14) 7289 | -9/Exiles | Aligned with FarCom system 7290 | -9/Exiles | Given EX-Vault access code 7325 | -9/Exiles | Opened EX-Vault 7335 | -9/Exiles | Found Field Lobotomy Kit 7343 | -9/Exiles | Found Latent Energy Streamer 7370 | -9/Exiles | Warned to stay clear of 0b10 Research branches 7923 | -9/Exiles | Attacked by the Exiles 8074 | -9/Exiles | Destroyed 8R-AWN 8103 | -9/Exiles | Lost 6 parts (1n5w) 8173 | -9/Exiles | Assimilated DAS Turret with FLK Orb 8213 | -9/Exiles | Build established: Gunner 8237 | -9/Exiles | Assimilated FT-4S9(z) with FLK Orb 8350 | -9/Exiles | Destroyed EX-DEC 8384 | -9/Exiles | Destroyed EX-BIN 8416 | -9/Exiles | Destroyed EX-HEX 8433 | -9/Exiles | Found Exp. Core Analyzer 8650 | -9/Exiles | Entered Mines 8759 | -8/Mines | Core integrity fell below 50% 8809 | -8/Mines | Destroyed 7 combat bots 8866 | -8/Mines | Discovered exit to Materials (range 9) 8926 | -8/Mines | Discovered exit to Materials (range 16) 9666 | -8/Mines | Found a Scrap Suit stashed away for nefarious purposes 9702 | -8/Mines | Entered Materials 9702 | -8/Materials | Evolved 2 slots: Utility x1, Weapon x1 9703 | -8/Materials | Identified exit to Factory 10010 | -8/Materials | Build established: Scavenger-Gunner 10697 | -8/Materials | Build established: Tank 10982 | -8/Materials | Garrison activated, responded to threat 11082 | -8/Materials | Discovered exit to Factory (range 15) 11149 | -8/Materials | Learned location of 1 exit from Lower Caves 11213 | -8/Materials | Learned Factory trap positions 11232 | -8/Materials | Learned Factory interactive machine intel 11242 | -8/Materials | Learned Storage stockpile data 11243 | -8/Materials | Learned Storage security intel 11244 | -8/Materials | Learned 4 Factory zone layouts 11253 | -8/Materials | Learned Factory emergency access door positions 11271 | -8/Materials | Learned Factory trap positions 11541 | -8/Materials | Build established: Scavenger-Tank 11890 | -8/Materials | Identified exit to Garrison 11890 | -8/Materials | Entered Garrison 12018 | -8/Garrison | Triggered checkpoint 12107 | -8/Garrison | Garrison Relay disabled 12191 | -8/Garrison | Build established: Gunner 12354 | -8/Garrison | Discovered new exit (range 3) 12467 | -8/Garrison | Triggered checkpoint 12636 | -8/Garrison | Triggered checkpoint 12697 | -8/Garrison | Garrison Relay disabled 12709 | -8/Garrison | Discovered exit to Factory (range 61) 12709 | -8/Garrison | Discovered exit to Factory (range 75) 12709 | -8/Garrison | Discovered exit to Factory (range 18) 12709 | -8/Garrison | Discovered new exit (range 62) 12892 | -8/Garrison | Garrison Relay disabled 12897 | -8/Garrison | Garrison Relay disabled 12978 | -8/Garrison | Phase Generator disabled 13034 | -8/Garrison | Triggered checkpoint 13135 | -8/Garrison | Rescued a captive Derelict 13135 | -8/Garrison | Rescued a captive Derelict 13163 | -8/Garrison | Triggered checkpoint 13189 | -8/Garrison | Garrison Relay disabled 13386 | -8/Garrison | Entered Materials 13386 | -8/Materials | Accompanied by 2 allies 13786 | -8/Materials | First assault squad dispatched 13997 | -8/Materials | Garrison activated, responded to threat 14064 | -8/Materials | Identified exit to Garrison 14064 | -8/Materials | Entered Garrison 14127 | -8/Garrison | Triggered checkpoint 14276 | -8/Garrison | Build established: Scavenger-Gunner 14305 | -8/Garrison | Triggered checkpoint 14316 | -8/Garrison | Garrison Relay disabled 14421 | -8/Garrison | Triggered checkpoint 14430 | -8/Garrison | Triggered checkpoint 14452 | -8/Garrison | Core integrity fell below 50% 14476 | -8/Garrison | Destroyed 10 combat bots 14494 | -8/Garrison | Triggered checkpoint 14631 | -8/Garrison | Discovered new exit (range 13) 14694 | -8/Garrison | Triggered checkpoint 14735 | -8/Garrison | Garrison Relay disabled 15148 | -8/Garrison | Build established: Skirmisher 15202 | -8/Garrison | Triggered checkpoint 15279 | -8/Garrison | Garrison Relay disabled 15414 | -8/Garrison | Discovered new exit (range 15) 15612 | -8/Garrison | Triggered checkpoint 15692 | -8/Garrison | Garrison Relay disabled 15749 | -8/Garrison | Discovered new exit (range 8) 15814 | -8/Garrison | Triggered checkpoint 15845 | -8/Garrison | Discovered new exit (range 5) 15861 | -8/Garrison | Core integrity fell below 20% 15875 | -8/Garrison | Entered Materials 15883 | -8/Materials | Lost 3 parts (1n1u1w) 16395 | -8/Materials | Build established: Gunner 16651 | -8/Materials | Discovered exit to Factory (range 16) 16761 | -8/Materials | Repaired Enh. Autogun 16823 | -8/Materials | Repaired Enh. Autogun 16924 | -8/Materials | Entered Factory 16924 | -7/Factory | Evolved 2 slots: Propulsion x2 16926 | -7/Factory | Loaded intel: 112 trap records 16928 | -7/Factory | Loaded intel: 52 interactive machine locations 17111 | -7/Factory | Identified exit to Garrison 17134 | -7/Factory | Entered Garrison 17229 | -7/Garrison | Build established: Scavenger-Gunner 17302 | -7/Garrison | Spotted B-75 Beast 17311 | -7/Garrison | Spotted B-75 Beast 17326 | -7/Garrison | Triggered checkpoint 17335 | -7/Garrison | Triggered checkpoint 17337 | -7/Garrison | Triggered checkpoint 17374 | -7/Garrison | Destroyed 10 combat bots 17411 | -7/Garrison | Discovered new exit (range 8) 17467 | -7/Garrison | Triggered checkpoint 17499 | -7/Garrison | Garrison Relay disabled 17550 | -7/Garrison | Build established: Gunner 17713 | -7/Garrison | Discovered new exit (range 12) 17792 | -7/Garrison | Triggered checkpoint 17805 | -7/Garrison | Garrison Relay disabled 18075 | -7/Garrison | Discovered new exit (range 13) 18180 | -7/Garrison | Triggered checkpoint 18341 | -7/Garrison | Garrison Relay disabled 18750 | -7/Garrison | Destroyed B-75 Beast 18761 | -7/Garrison | Destroyed B-75 Beast 18881 | -7/Garrison | Build established: Scavenger-Gunner 19023 | -7/Garrison | Attempted to access garrison exit controls, blocked by remote lockdown 19123 | -7/Garrison | Entered Factory 19123 | -6/Factory | Evolved 2 slots: Utility x2 19124 | -6/Factory | Identified exit to Extension 19125 | -6/Factory | Loaded intel: 110 trap records 19128 | -6/Factory | Identified exit to DSF 19141 | -6/Factory | Entered DSF 19173 | -6/DSF | Additional patrols routed to DSF 19286 | -6/DSF | Discovered new exit (range 15) 19347 | -6/DSF | Sterilization system engaged 19367 | -6/DSF | Ambient heat levels rising (+10) 19382 | -6/DSF | Ambient heat levels rising (+10) 19397 | -6/DSF | Ambient heat levels rising (+10) 19412 | -6/DSF | Ambient heat levels rising (+10) 19427 | -6/DSF | Ambient heat levels rising (+10) 19442 | -6/DSF | Ambient heat levels rising (+10) 19457 | -6/DSF | Ambient heat levels rising (+10) 19472 | -6/DSF | Ambient heat levels rising (+10) 19487 | -6/DSF | Ambient heat levels rising (+10) 19502 | -6/DSF | Ambient heat levels rising (+10) 19504 | -6/DSF | Entered Garrison 19654 | -6/Garrison | Triggered checkpoint 19704 | -6/Garrison | Garrison Relay disabled 19787 | -6/Garrison | Spotted B-75 Beast 19842 | -6/Garrison | Build established: Pyromaniac-Gunner 19856 | -6/Garrison | Destroyed B-75 Beast 20002 | -6/Garrison | Triggered checkpoint 20089 | -6/Garrison | Discovered new exit (range 9) 20200 | -6/Garrison | Build established: Scavenger-Gunner 20280 | -6/Garrison | Triggered checkpoint 20331 | -6/Garrison | Garrison Relay disabled 20481 | -6/Garrison | Triggered checkpoint 20522 | -6/Garrison | Triggered checkpoint 20636 | -6/Garrison | Discovered new exit (range 10) 20651 | -6/Garrison | Garrison Relay disabled 20686 | -6/Garrison | Triggered checkpoint 20735 | -6/Garrison | Garrison Relay disabled 21021 | -6/Garrison | Triggered checkpoint 21105 | -6/Garrison | Garrison Relay disabled 21347 | -6/Garrison | Discovered new exit (range 9) 21566 | -6/Garrison | Entered Factory 21566 | -5/Factory | Accompanied by 2 allies 21566 | -5/Factory | Evolved 2 slots: Propulsion x1, Utility x1 21615 | -5/Factory | Build established: Hauler-Gunner 22042 | -5/Factory | Identified exit to Upper Caves 22278 | -5/Factory | Build established: Scavenger-Gunner 22401 | -5/Factory | Sucked down chute 22401 | -5/Factory | Entered Waste 22401 | -5/Waste | The area was eerily silent 22401 | -5/Waste | Met up with 1 ally sucked down the chute earlier 22421 | -5/Waste | 1 allies followed down the chute 22448 | -5/Waste | Found Prototype Device 22534 | -5/Waste | Discovered new exit (range 12) 22979 | -5/Waste | Identified Exp. Transmission Jammer 23017 | -5/Waste | Found Prototype Device 23017 | -5/Waste | Identified Exp. ECM Suite 28005 | -5/Waste | Entered Factory 28005 | -5/Factory | Accompanied by 2 allies 28336 | -5/Factory | P-70 Sage assimilated allied Slayer 5a 28406 | -5/Factory | Discovered new exit (range 6) 28413 | -5/Factory | Identified exit to Factory 28820 | -5/Factory | Build established: Hauler-Gunner 29072 | -5/Factory | Allied Derelicts emerged from ambush trap array 29199 | -5/Factory | Fabricated Exp. Heat Sink? 29796 | -5/Factory | Found Prototype Launcher 29796 | -5/Factory | Identified Mni. Smartbomb Launcher 30510 | -5/Factory | Entered Upper Caves 30523 | -5/Upper Caves | Met a Warlord Commander 30524 | -5/Upper Caves | Learned location of Warlord (-4) 30525 | -5/Upper Caves | Warlord Commander delivered Encrypted Comm Array 30526 | -5/Upper Caves | Found Encrypted Comm Array 30548 | -5/Upper Caves | Learned Factory terminal intel 30601 | -5/Upper Caves | Learned location of Armory (-3) 31047 | -5/Upper Caves | Discovered new exit (range 7) 31219 | -5/Upper Caves | Spotted B-75 Beast 31274 | -5/Upper Caves | Entered another Upper Caves area 31317 | -5/Upper Caves | Spotted B-75 Beast 31604 | -5/Upper Caves | Discovered new exit (range 4) 31824 | -5/Upper Caves | Entered Zhirov 31827 | -5/Zhirov | Discovered new exit (range 4) 31873 | -5/Zhirov | Learned location of Quarantine (-2) 31873 | -5/Zhirov | Learned location of Testing (-3) 31873 | -5/Zhirov | Learned location of Command (-1) 31902 | -5/Zhirov | Found Alien Artifact 31902 | -5/Zhirov | Identified Integrated Dissipator 31902 | -5/Zhirov | Installed Integrated Dissipator, increased core heat dissipation (+20) 31919 | -5/Zhirov | Found Alien Artifact 32106 | -5/Zhirov | Build established: Hauler-Mutant 32219 | -5/Zhirov | Entered Proximity Caves 32336 | -4/Proximity Caves | Spotter reported a threat 32389 | -4/Proximity Caves | Spotter reported a threat 32407 | -4/Proximity Caves | Found Alien Artifact 32407 | -4/Proximity Caves | Identified Core Expander 32407 | -4/Proximity Caves | Installed Core Expander, added new Weapon slot 32449 | -4/Proximity Caves | Spotter reported a threat 32457 | -4/Proximity Caves | Spotter reported a threat 32510 | -4/Proximity Caves | Spotter reported a threat 32520 | -4/Proximity Caves | Spotter reported a threat 32573 | -4/Proximity Caves | Spotter reported a threat 32635 | -4/Proximity Caves | Spotter reported a threat 32691 | -4/Proximity Caves | Build established: Hauler-Executioner 32776 | -4/Proximity Caves | Learned Research security intel 32878 | -4/Proximity Caves | Discovered exit to Factory (range 11) 33085 | -4/Proximity Caves | Entered Factory 33085 | -4/Factory | Evolved 2 slots: Power x1, Utility x1 33086 | -4/Factory | Identified exit to Upper Caves 33087 | -4/Factory | Loaded intel: 26 terminal locations 33335 | -4/Factory | Search patrols dispatched 33585 | -4/Factory | Search patrols dispatched 33640 | -4/Factory | Found Prototype Device 33845 | -4/Factory | Entered Upper Caves 33931 | -4/Upper Caves | Encountered a Warlord checkpoint 34446 | -4/Upper Caves | Found Alien Artifact 34620 | -4/Upper Caves | Discovered new exit (range 11) 35030 | -4/Upper Caves | Entered another Upper Caves area 36267 | -4/Upper Caves | Discovered new exit (range 7) 36429 | -4/Upper Caves | Entered Warlord 36474 | -4/Warlord | System corruption cleaned by Quarantine Array 36695 | -4/Warlord | Found Prototype Special Weapon 36695 | -4/Warlord | Identified RU-N14's Throwing Claymores v3 36730 | -4/Warlord | Visited the Vortex Lab 36745 | -4/Warlord | Warlord's base attacked by MAIN.C 36746 | -4/Warlord | Found Prototype Energy Gun 36746 | -4/Warlord | Identified Vortex Rail 36840 | -4/Warlord | Met Warlord 36923 | -4/Warlord | Found Prototype Device 36923 | -4/Warlord | Identified Exp. Phase Shifter 36952 | -4/Warlord | Found Prototype Reactor 36959 | -4/Warlord | Found Prototype Hackware 37095 | -4/Warlord | Warlord forces counterattacked 37220 | -4/Warlord | Learned Testing security intel 37220 | -4/Warlord | Learned Quarantine security intel 37220 | -4/Warlord | Learned Armory repair station intel 37220 | -4/Warlord | Learned Armory recycling unit intel 37221 | -4/Warlord | Learned 4 Armory zone layouts 37221 | -4/Warlord | Learned 4 Access zone layouts 37222 | -4/Warlord | Learned Quarantine emergency access door positions 37269 | -4/Warlord | Lost 21 allies 37335 | -4/Warlord | Spotted Executioner 37351 | -4/Warlord | Destroyed Executioner 37363 | -4/Warlord | Found Exp. Core Analyzer 37375 | -4/Warlord | Found Exp. Core Analyzer 37420 | -4/Warlord | Warlord base infiltrated, sounded retreat 37632 | -4/Warlord | Destroyed 12 combat bots 37638 | -4/Warlord | Lost 8 parts (1p1n1u5w) 37720 | -4/Warlord | Spotted Executioner 37727 | -4/Warlord | Destroyed Executioner 37728 | -4/Warlord | Spotted Executioner 37757 | -4/Warlord | Destroyed Executioner 37784 | -4/Warlord | Destroyed 8 combat bots 37791 | -4/Warlord | Core integrity fell below 50% 37795 | -4/Warlord | Destroyed Executioner 37802 | -4/Warlord | Identified Vortex Chain Reactor 37824 | -4/Warlord | System corruption reached 10% 37830 | -4/Warlord | Spotted Striker 37839 | -4/Warlord | Destroyed Striker 37845 | -4/Warlord | System corruption reached 30% 37847 | -4/Warlord | Identified Transdimensional Reconstructor 37847 | -4/Warlord | Warped through subspace 37877 | -4/Warlord | Lost 14 parts (2p5n3u4w) 37925 | -4/Warlord | Spotted Striker 37967 | -4/Warlord | Core integrity fell below 20% 37973 | -4/Warlord | Identified Dimensional Node Initializer 37973 | -4/Warlord | Initialized slip node 37974 | -4/Warlord | Core destroyed Last Messages --------------- 37955_ System corrupted: Gatling Laser failed to cycle. 37955_ System corrupted: Matter Neutralizer failed to cycle. 37956_ Matter Filter destroyed. 37956_ Hvy. Laser destroyed. 37959_ System corrupted: Adv. Shield Generator rejected. 37962_ Striker suffers critical hit (Burn). 37965_ Gatling Laser destroyed. 37966_ Phase Gun destroyed. 37966_ Destroyed Phase Gun. 37968_ Matter Neutralizer destroyed. 37969_ Plasma Rifle destroyed. 37969_ Destroyed Plasma Rifle. 37969_ G-67 Veteran destroyed. 37971_ Vortex Chain Reactor destroyed. 37971_ Mni. Smartbomb Launcher destroyed. 37971_ Destroyed Mni. Smartbomb Launcher. 37973_ Identified Dimensional Node Initializer. 37973_ Initializer activates and latches into the ground. 37974_ System corrupted: Matter fused (-8). 37974_ Dimensional Slip Node implodes. Map ----- +----------------------------------------------------+ | ###### #### ###########"""""""%! %" ###### | | ##???# #??#[%= #?????????##### ## %% #?? | | ???#?#" #?###%/ # ##????????????##?# ###?? | | ?????#" #?## = # #???????????????# % #??? | | ?#???#""X"#??## %# #???????????????# #??? | | ##?########??## # #??????????????# / #?? | | ????# ##### * #?????????????# ##?? | | ????# % ## #????????????# # * #??? | | ????# ####???????????# ## ##??? | | ????# ## ## %####???????????##?## #??? | | ######+########## ####??????????????# % # #??? | | ### # #??????????????# ??? | | # ##% # ##??????????????# ?? | | ### % # #???????????????# = ?? | | " "" " # # #???????????????## # !%= ## | | """""" ###* " ##???????????????? %#]] ## | | """" ##%[=##=#????????????????# %% %= | | #####"###""######!#[##????#???????????## %=### | | ??#?###?# #??###!"##?????""????????????# ???? | | ??#??#####"#??#*!%%%#?????""#?????????????????# | | ?????# ##??##=% ##?????""#?????????????????# | | ?????# #?###![[!!#?####""#??????????????????# | | ?????# #?#]![*!!=### ""#???????????????????# | | ?????# #?##=[= * %# ""#####????????????????# | | ????## ### !!* =! "" "############?????? | | ????#"# "## =[%=!%%!=p*@""=/% " "" ""#?????? | | ???# #""""### ==%=!=! ggK""!=%%!=!i/!= % %#?####? | | ???## ## %= =!*!!* gp p%=%=%[%%!%=%]! ### ## | | ????##?# % %==| =%!!%|!%!%[!=!%+ | | ???????# % = %= !%=%= % %*%%=%% + | | ######## /|[ =%%=% % %=%%! #### | | #"""""## # % %; !="" "#??## | | #""X""## # # "" " """ """"#???# | | #"" + # # "" "############???# | | #"X # #;## #####;;""#####??????????????# | | #"" # #?###""#?????????????????? | | #""X ## ##??#""#????????????????? # | | #""" ## """" ####""#????????????????? ## | | ####"""# """" # # #""#???????????????? ?? | | ???# #" "" # ""###?????????????# ?? | | ???# ### """ #?????????????# #?? | | ???###?# #%# ##?????????????# ??? | | ???????# ## #####?????????????? ??? | | ??????## # ! ###?????????????? ???? | | ######"" #??????????????????? | | # =## #??????????????????? | | " # #??????????????????? | | " % !% =# #??????????????????? | | " % # ##??????????????????? | | # " # # #??????????????????? | +----------------------------------------------------+ Best States ------------- Heat Dissipation 130 Coolant Potential 50 Energy Generation 55 Energy Capacity 700 Matter Stores 600 Matter Capacity 600 Sight Range 16 Terrain Scan Range 24 Terrain Scan Density 10 Base Temperature (-) 100 Corruption Containment 8 Armor Coverage 225 Resistance: KI 25 Resistance: TH 20 Resistance: EM 20 Weapon Cycling 25 Phase Shifting 20 Evasion (%) 60 Targeting Accuracy 8 Core Analysis 8 Recoil Reduction 6 Salvage Targeting 4 Defensive Hacking 11 Authchip Count 1 Item Schematics ----------------- Targeting Computer | -10/Materials | Hacked Heat Sink | -9/Materials | Hacked Assault Rifle | -9/Materials | Scanalyzed Arm. Wheel | -9/Mines | Hacked Lgt. Ion Engine | -9/Mines | Hacked Cargo Storage Unit | -8/Materials | Hacked Exp. Heat Sink | -8/Materials | Scanalyzed Adv. Weapon Cycler | -8/Materials | Scanalyzed Rnf. Fission Core | -5/Factory | Scanalyzed Assault Drone Bay | -5/Zhirov | Free Exp. Optical Array | -5/Zhirov | Free Imp. Arc Thrower | -5/Zhirov | Free Centrium Wheel | -4/Factory | Scanalyzed Robot Schematics ------------------ M-13 Machinist | -10/Materials | Hacked Fabricated ------------ Exp. Heat Sink | x1 | -5/Factory | Authchip Repaired ---------- Hvy. Assault Rifle | 14% | -9/Materials | Broken Enh. Autogun | 38% | -8/Materials Enh. Autogun | 38% | -8/Materials Alien Tech Used ----------------- Integrated Dissipator Core Expander Transdimensional Reconstructor Dimensional Node Initializer Achievements -------------- None Challenges ------------ None Game ------ Seed ImpulseSmartArchive Manual? 0 Play Time 04:49:52 Cumulative 1245.4 hours Start 2025.08.13 @ 23:08:18 End 2025.08.15 @ 00:45:34 Sessions 7 Manual Loads 0 Difficulty Rogue Special Mode None Game No. 593 Rogue 593 Adventurer 0 Explorer 0 Win Type - Total 23 Types 10/4/3/0/1/1/2/2/0/0 Lore% 91 Gallery% 90 Achievement% 84 Wizard Run 0 Options --------- Layout 0 ASCII 0 Keyboard 0 Movement Numpad Keybinds 0 Fullscreen 2 Font 24/Smallcaps Map View 76x50 Zoom Use 0% Tactical HUD 1 Map Filters NONE Filters SHIFT_HUE(315) Steam 1 RUN: 6bee532a-9559-4dc8-b53d-d1ff5e1ddadd